Cogmind - Beta 12 @@@ ROGUE MODE // 2023.04.11 @ 08:34:12 Player: Zirov Result: Self-destructed Performance ------------- Evolutions (3) 1500 Regions Visited (6) 1200 Robots Destroyed (60) 300 Value Destroyed (1630) 1630 Prototype IDs (28) 560 Alien Tech Used (0) 0 Bonus (300) 300 TOTAL SCORE: 5490 Bonus ------- Aligned with FarCom 300 Cogmind --------- Core Integrity 530/700 Matter 22/300 Energy 240/240 System Corruption 4% Temperature Cool (0) Movement Treading (237) Ox1 Location -7/Factory Parts ------- > --- POWER (1) -------- Nuclear Core > --- PROPULSION (4) --- Armored Treads Advanced Treads > --- UTILITY (5) ------ High-capacity Storage Unit Machine Analyzer Advanced Visual Processing Unit Modified TNC Hardened Light Armor Plating > --- WEAPON (3) ------- Minigun Advanced Assault Cannon > --- INVENTORY (20) --- Improved Deuterium Engine Armored Wheel Armored Wheel Advanced Heat Sink Improved Sensor Array Seismic Detector Salvage Targeting Computer Hardened Medium Armor Plating Hardlight Generator System Shield Gatling Laser Beam Cannon Heavy Assault Rifle Autogun Autogun Gauss Rifle Grenade Launcher Precision Grenade Launcher Peak State ------------ > --- POWER ------------ Nuclear Core > --- PROPULSION ------- Light Treads Improved Treads Armored Treads Advanced Treads > --- UTILITY ---------- Cooling System High-capacity Storage Unit Machine Analyzer Modified TNC Hardened Light Armor Plating > --- WEAPON ----------- Autogun Minigun Gauss Rifle > --- INVENTORY -------- Light Deuterium Engine Armored Wheel Armored Wheel Advanced Heat Sink Advanced Visual Processing Unit Improved Sensor Array Signal Interpreter Seismic Detector Salvage Targeting Computer Hardened Medium Armor Plating Hardlight Generator System Shield Gatling Laser Beam Cannon Heavy Assault Rifle Autogun Autogun Gauss Rifle Assault Cannon Grenade Launcher [Rating: 40] Favorites ----------- Power Ion Engine Engine Ion Engine Power Core Light Nuclear Core Propulsion Light Treads Treads Light Treads Utility Seismic Detector Device Seismic Detector Storage High-capacity Storage Unit Processor Modified TNC Protection Hardened Light Armor Plating Weapon Heavy Assault Rifle Ballistic Gun Heavy Assault Rifle Ballistic Cannon Advanced Assault Cannon Launcher Grenade Launcher Build | -11 -10 -10 -10 -9 -8 -7 ------- Run | Jun Mat Min Exi Min Mat Fac Slots Evolved 6 | . . . . . 4 2 Power . | . . . . . . . Propulsion 2 | . . . . . 1 1 Utility 3 | . . . . . 2 1 Weapon 1 | . . . . . 1 . Parts Attached 40 | 7 5 . . 1 12 15 Power 4 | 1 . . . . 1 2 Engine 2 | 1 . . . . . 1 Core 2 | . . . . . 1 1 Reactor . | . . . . . . . Propulsion 12 | 2 2 . . . 4 4 Treads 12 | 2 2 . . . 4 4 Leg . | . . . . . . . Wheel . | . . . . . . . Hover . | . . . . . . . Flight . | . . . . . . . Utility 12 | 2 1 . . . 3 6 Device 3 | 1 . . . . . 2 Storage 3 | 1 1 . . . 1 . Processor 3 | . . . . . 1 2 Hackware . | . . . . . . . Protection 3 | . . . . . 1 2 Artifact . | . . . . . . . Weapon 12 | 2 2 . . 1 4 3 Energy Gun . | . . . . . . . Energy Cannon . | . . . . . . . Ballistic Gun 10 | 2 2 . . . 4 2 Ballistic Cannon 1 | . . . . . . 1 Launcher 1 | . . . . 1 . . Special Weapon . | . . . . . . . Impact Weapon . | . . . . . . . Slashing Weapon . | . . . . . . . Piercing Weapon . | . . . . . . . Special Melee Weapon . | . . . . . . . Unidentified Prototypes . | . . . . . . . Parts Lost 7 | . . . . . . 7 Power . | . . . . . . . Propulsion 4 | . . . . . . 4 Utility 1 | . . . . . . 1 Weapon 2 | . . . . . . 2 Highest Loss Streak 3 | . . . . . . 3 To Critical Strikes . | . . . . . . . Average Slot Usage (%) 98 | . 99 100 100 100 99 96 Engine 7 | . 14 14 14 14 3 . Core 3 | . . . . . 5 6 Treads 27 | . 27 28 28 28 26 26 Device 11 | . 14 14 14 14 9 10 Storage 10 | . 14 14 14 14 9 7 Processor 5 | . . . . . 9 11 Protection 4 | . . . . . 9 7 Ballistic Gun 26 | . 28 28 28 27 26 22 Naked Turns . | . . . . . . . Heaviest Build 65 | 14 32 32 32 32 60 65 Greatest Support 85 | 40 40 40 40 40 65 85 Greatest Overweight (x) 1 | . . . . . . 1 Average Overweight (x) . | . . . . . . . Largest Inventory Capacity 20 | 8 15 15 15 15 20 20 Average Capacity 16 | 7 12 15 15 15 19 20 Most Carried 20 | . 15 15 15 15 20 20 Average Carried 14 | . 7 14 14 14 17 19 Final Capacity 20 | 8 15 15 15 15 20 20 Final Carried 20 | . 15 14 15 15 20 18 Class Distribution -------------------- 51% | Skirmisher 48% | Mutant Dominant Class ---------------- Mutant | -10/Materials Mutant | -10/Mines Mutant | -10/Exiles Mutant | -9/Mines Skirmisher | -8/Materials Skirmisher | -7/Factory Resources | -11 -10 -10 -10 -9 -8 -7 ----------- Run | Jun Mat Min Exi Min Mat Fac Matter Collected 1745 | 280 381 18 . 44 412 610 Remotely . | . . . . . . . Salvage Created 2128 | 94 463 . . 90 659 822 Parts 125 | 8 21 . . 18 29 49 Haulers Intercepted 2 | . . . . . 1 1 Recyclers Shooed 1 | . 1 . . . . . Parts Field Recycled . | . . . . . . . Retrieved Matter . | . . . . . . . Parts Self-Destructed . | . . . . . . . Prevented . | . . . . . . . Kills | -11 -10 -10 -10 -9 -8 -7 ------- Run | Jun Mat Min Exi Min Mat Fac Combat Hostiles Destroyed 43 | . 8 . . 8 13 14 Guns 39 | . 8 . . 4 13 14 AOE 4 | . . . . 4 . . Classes Destroyed 10 | 2 4 . . . 3 1 Worker 4 | . 1 . . . . 3 Tunneler 3 | 1 . . . 2 . . Hauler 2 | . . . . . 1 1 Recycler 3 | 1 1 . . . . 1 Mechanic 1 | . . . . . 1 . Watcher 4 | . 3 . . . . 1 Swarmer 17 | . 2 . . 8 3 4 Grunt 16 | . 6 . . . 7 3 Sentry 5 | . . . . . 3 2 Programmer 5 | . . . . . . 5 Best Kill Streak 6 | 2 5 . . 6 4 3 Combat Bots Only 4 | . 3 . . 4 4 3 Max Kills in Single Turn 4 | 1 1 . . 4 2 1 Gunslinging 1 | . . . . . 1 . Exploded 3 | . . . . 3 . . Melee . | . . . . . . . Uniques/NPCs Destroyed . | . . . . . . . Combat | -11 -10 -10 -10 -9 -8 -7 -------- Run | Jun Mat Min Exi Min Mat Fac Damage Taken 2765 | . 301 . . 70 598 1796 Core 305 | . 9 . . 17 109 170 Absorbed by Shields . | . . . . . . . Regen/Repaired (Parts) 165 | . 165 . . . . . Core Remaining (%) 89 | 100 . . . 89 80 . Volleys Fired 155 | 5 50 . . 7 29 64 Largest 3 | 2 2 . . 2 3 3 Hottest 76 | 40 40 . . 46 69 76 Shots Fired 402 | 10 100 . . 12 87 193 Gun 400 | 10 100 . . 10 87 193 Cannon . | . . . . . . . Launcher 2 | . . . . 2 . . Special . | . . . . . . . Kinetic 400 | 10 100 . . 10 87 193 Thermal . | . . . . . . . Explosive 2 | . . . . 2 . . Electromagnetic . | . . . . . . . Robot Hit Streak 21 | 3 12 . . 3 12 21 Robot Miss Streak 5 | 2 3 . . 2 2 5 Penetration Max 1 | . . . . . . 1 Secondary Targets 2 | . . . . . 1 1 Max Gunslinging Chain 1 | . . . . . 1 1 Shots Hit Robots 270 | 5 68 . . 5 60 132 Core Hits 110 | 4 27 . . 11 31 37 Critical Kills 2 | . . . . . . 2 Critical Parts Destroyed . | . . . . . . . Critical Strikes 2 | . . . . . . 2 Destroy 2 | . . . . . . 2 Melee Attacks . | . . . . . . . Impact . | . . . . . . . Slashing . | . . . . . . . Piercing . | . . . . . . . Sneak Attacks . | . . . . . . . Combat Hostiles . | . . . . . . . Follow-up Attacks . | . . . . . . . Damage Inflicted 4295 | 45 745 . . 297 873 2335 Guns 4073 | 45 745 . . 80 873 2330 Cannons . | . . . . . . . Explosions 217 | . . . . 217 . . Melee . | . . . . . . . Ramming 5 | . . . . . . 5 Kinetic 4073 | 45 745 . . 80 873 2330 Thermal . | . . . . . . . Explosive 217 | . . . . 217 . . Electromagnetic . | . . . . . . . Impact . | . . . . . . . Slashing . | . . . . . . . Piercing . | . . . . . . . Highest Corruption 4 | . . . . . . 4 Average Corruption 2 | . . . . . . 2 Corruption Purged . | . . . . . . . Corruption Blocked . | . . . . . . . Effects 19 | . . . . . . 19 Message Errors 8 | . . . . . . 8 Matter Fused 2 | . . . . . . 2 Heat Flow Errors 4 | . . . . . . 4 Data Loss (minor) 1 | . . . . . . 1 Misfires 2 | . . . . . . 2 Alerts 1 | . . . . . . 1 Weapon Failures 1 | . . . . . . 1 Overload Shots . | . . . . . . . Overflow Damage . | . . . . . . . Projectiles . | . . . . . . . Explosions . | . . . . . . . Melee . | . . . . . . . Knockbacks . | . . . . . . . Impact . | . . . . . . . Kinetic . | . . . . . . . Secondary . | . . . . . . . Self-Inflicted Damage . | . . . . . . . Shots . | . . . . . . . Rammed . | . . . . . . . Targets Rammed 2 | . . . . . . 2 Kicked . | . . . . . . . Crushed 2 | . . . . . . 2 Highest Temperature 231 | . 18 . . . 102 231 Average Temperature 55 | . 7 . . . 33 95 Received Heat Transfer 993 | . 162 . . . 288 543 Siege Activations . | . . . . . . . Robots Corrupted . | . . . . . . . Combat Hostiles . | . . . . . . . Parts Fried . | . . . . . . . Impact Corruptions . | . . . . . . . Robots Melted . | . . . . . . . Combat Hostiles . | . . . . . . . Parts Melted . | . . . . . . . Heat Transferred . | . . . . . . . Parts Sabotaged . | . . . . . . . Parts Stolen . | . . . . . . . Parts Stripped . | . . . . . . . Power Chain Reactions . | . . . . . . . Missiles Intercepted . | . . . . . . . Alert | -11 -10 -10 -10 -9 -8 -7 ------- Run | Jun Mat Min Exi Min Mat Fac Peak Influence 308 | 10 308 5 . 110 270 147 Initial 42 | . 6 1 . . 42 4 Average 76 | 2 108 2 . 39 123 53 Maximum Alert Level 1 | . 1 . . . 1 . Low Security (%) 94 | 100 85 100 . 100 89 100 Level 1 5 | . 14 . . . 10 . Level 2 . | . . . . . . . Level 3 . | . . . . . . . Level 4 . | . . . . . . . Level 5 . | . . . . . . . High Security . | . . . . . . . Max Security . | . . . . . . . Squads Dispatched 9 | . 1 . . . 2 6 Investigation 3 | . 1 . . . 1 1 Extermination 3 | . . . . . . 3 Reinforcement 3 | . . . . . 1 2 Assault . | . . . . . . . Garrison . | . . . . . . . Intercept . | . . . . . . . Searches Triggered . | . . . . . . . Construction Impeded . | . . . . . . . Haulers Reinforced 1 | . . . . . . 1 Active Scanning Responses . | . . . . . . . Cargo Convoy Interrupts . | . . . . . . . Stealth | -11 -10 -10 -10 -9 -8 -7 --------- Run | Jun Mat Min Exi Min Mat Fac Distress Signals 5 | . 3 2 . . . . Communications Jammed . | . . . . . . . Distress Signals . | . . . . . . . Times Spotted 65 | . 18 . . 8 16 23 Peak Tracking Total 5 | . 5 . . 4 4 4 Tactical Retreats 4 | . 2 . . . . 2 Traps | -11 -10 -10 -10 -9 -8 -7 ------- Run | Jun Mat Min Exi Min Mat Fac Traps Triggered 2 | . 1 . . . 1 . Indirectly . | . . . . . . . Trap Hack Attempts . | . . . . . . . Triggered . | . . . . . . . Disarmed . | . . . . . . . Reprogrammed . | . . . . . . . Reused . | . . . . . . . Traps Extracted . | . . . . . . . Installed . | . . . . . . . Triggered . | . . . . . . . Machines | -11 -10 -10 -10 -9 -8 -7 ---------- Run | Jun Mat Min Exi Min Mat Fac Machines Disabled 1 | . . . . . . 1 Max in Single Turn 1 | . . . . . . 1 Machines Repaired . | . . . . . . . Machines Sabotaged . | . . . . . . . Overloaded Fab Kills . | . . . . . . . Hacking | -11 -10 -10 -10 -9 -8 -7 --------- Run | Jun Mat Min Exi Min Mat Fac Machines Accessed 20 | . 9 1 1 1 4 4 Terminals 16 | . 8 1 . 1 3 3 Fabricators . | . . . . . . . Repair Stations 2 | . 1 . . . . 1 Recycling Units . | . . . . . . . Scanalyzers 1 | . . . . . 1 . Garrison Access . | . . . . . . . Total Hacks 52 | . 25 3 1 1 13 9 Successful 25 | . 14 1 1 . 7 2 Failed 27 | . 11 2 . 1 6 7 Catastrophic 5 | . 1 1 . 1 1 1 Database Lockouts . | . . . . . . . Manual 7 | . 4 . 1 1 1 . Terminals 41 | . 21 3 . 1 10 6 Fabricators . | . . . . . . . Repair Stations 7 | . 4 . . . . 3 Recycling Units . | . . . . . . . Scanalyzers 3 | . . . . . 3 . Garrison Access . | . . . . . . . Terminal Hacks 17 | . 9 1 1 . 5 1 Part Schematic 1 | . 1 . . . . . Robot Analysis 1 | . . . . . 1 . Prototype ID Bank 3 | . 3 . . . . . Terminal Index 1 | . . . . . 1 . Alert Level 1 | . . . . . 1 . Locate Traps 4 | . 2 . . . 1 1 Dispatch Records 1 | . . 1 . . . . Hauler Manifests 1 | . 1 . . . . . Registered Components 2 | . 1 . . . 1 . Registered Prototypes 1 | . 1 . . . . . EX-Prototype ID Bank 1 | . . . 1 . . . Fabricator Hacks . | . . . . . . . Repair Station Hacks 5 | . 4 . . . . 1 Scan Component 3 | . 2 . . . . 1 Repair 2 | . 2 . . . . . Recycling Unit Hacks . | . . . . . . . Scanalyzer 2 | . . . . . 2 . Insert Component 1 | . . . . . 1 . Analyze 1 | . . . . . 1 . Garrison Access Hacks . | . . . . . . . Unauthorized Hacks 1 | . 1 . . . . . Terminals 1 | . 1 . . . . . Operators 1 | . 1 . . . . . Fabricators . | . . . . . . . Repair Stations . | . . . . . . . Recycling Units . | . . . . . . . Scanalyzers . | . . . . . . . Garrison Access . | . . . . . . . Data Cores Recovered . | . . . . . . . Used . | . . . . . . . Hacking Detections 16 | . 6 1 . 1 4 4 Full Trace Events 1 | . . . . . . 1 Feedback Events . | . . . . . . . Feedback Blocked . | . . . . . . . Robot Schematics Acquired . | . . . . . . . Robots Built . | . . . . . . . Authchips . | . . . . . . . Time . | . . . . . . . Total Robot Build Rating . | . . . . . . . Part Schematics Acquired 2 | . 1 . . . 1 . Parts Built . | . . . . . . . Authchips . | . . . . . . . Time . | . . . . . . . Total Part Build Rating . | . . . . . . . Parts Repaired 2 | . 2 . . . . . Time 52 | . 52 . . . . . Parts Recycled . | . . . . . . . Recycled Matter . | . . . . . . . Retrieved Matter . | . . . . . . . Retrieved Components . | . . . . . . . Parts Scanalyzed 1 | . . . . . 1 . Part Schematics Acquired 1 | . . . . . 1 . Parts Damaged . | . . . . . . . Bothacking | -11 -10 -10 -10 -9 -8 -7 ------------ Run | Jun Mat Min Exi Min Mat Fac Used RIF Installer . | . . . . . . . Robots Hacked . | . . . . . . . Non-combat . | . . . . . . . Combat . | . . . . . . . Robot Hacks Applied . | . . . . . . . Relay Couplers Released . | . . . . . . . Fabnet Peak Effective % . | . . . . . . . Robots Rewired . | . . . . . . . Allies Hacked . | . . . . . . . Hacks Repelled . | . . . . . . . Allies | -11 -10 -10 -10 -9 -8 -7 -------- Run | Jun Mat Min Exi Min Mat Fac Total Allies . | . . . . . . . Largest Group . | . . . . . . . Highest-Rated Group . | . . . . . . . Highest-Rated Ally . | . . . . . . . Total Orders . | . . . . . . . Ally Attacks . | . . . . . . . Total Damage . | . . . . . . . Kills . | . . . . . . . Allies Corrupted . | . . . . . . . Allies Melted . | . . . . . . . Intel | -11 -10 -10 -10 -9 -8 -7 ------- Run | Jun Mat Min Exi Min Mat Fac Robot Analysis Total 1 | . . . . . 1 . Derelict Logs Recovered 2 | . . 1 . 1 . . Drone Launches . | . . . . . . . Drone Recoveries . | . . . . . . . Exploration | -11 -10 -10 -10 -9 -8 -7 ------------- Run | Jun Mat Min Exi Min Mat Fac Turns Passed 5975 | 112 1377 478 347 579 1262 1820 Spaces Moved 3022 | 58 702 298 217 341 578 828 Core 4 | 4 . . . . . . Treads 3018 | 54 702 298 217 341 578 828 Legs . | . . . . . . . Wheels . | . . . . . . . Hover . | . . . . . . . Flight . | . . . . . . . Fastest Speed 50 | 50 160 160 160 160 155 155 Average Speed 164 | 152 160 160 160 160 155 180 Slowest Speed 238 | 160 160 160 160 160 160 238 Overloaded Moves . | . . . . . . . Propulsion Burnouts . | . . . . . . . Robots Hopped . | . . . . . . . Cave-ins Triggered . | . . . . . . . Exploration Rate (%) 52 | 5 99 68 61 83 34 19 Regions Visited 6 Branch Regions 3 Pre-discovered Areas 1 | . . . . 1 . . Known Exits Taken . | . . . . . . . Unknown Exits Taken 6 | 1 1 1 1 1 1 . Scrap Searched 3 | . . 1 . 2 . . Spaces Dug . | . . . . . . . Terrain Destroyed 14 | . . . . 14 . . Melee . | . . . . . . . Projectile . | . . . . . . . AOE 14 | . . . . 14 . . Terrain Rammed . | . . . . . . . Walls Destroyed . | . . . . . . . Machines Disabled . | . . . . . . . Actions | -11 -10 -10 -10 -9 -8 -7 --------- Run | Jun Mat Min Exi Min Mat Fac Total 3732 | 69 865 300 217 363 880 1038 Wait 459 | . 93 . . 13 247 106 Move 3016 | 57 701 297 216 340 577 828 Hop . | . . . . . . . Pick Up 36 | . 14 1 1 1 10 9 Fast Attach 14 | 7 2 . . . 1 4 Attach 8 | . . . . . 4 4 Detach . | . . . . . . . Swap 18 | . 3 . . 1 7 7 Drop 24 | . 2 2 . 1 5 14 Fire 155 | 5 50 . . 7 29 64 Melee . | . . . . . . . Ram . | . . . . . . . Kick . | . . . . . . . Crush 2 | . . . . . . 2 Escape Stasis . | . . . . . . . Rewire . | . . . . . . . Trap . | . . . . . . . Miscellaneous . | . . . . . . . Route ------- -11/Junkyard -10/Materials (discovered 5 exits: [*Mat x3] / *Min x2) -10/Mines -10/Exiles -9/Mines -8/Materials -7/Factory (discovered 1 exit: [*Fac]) History --------- Turn | Location | Event 7 | -11/Junkyard | Discovered new exit (range 14) 113 | -11/Junkyard | Entered Materials 126 | -10/Materials | Discovered new exit (range 11) 309 | -10/Materials | Build established: Mutant 502 | -10/Materials | Discovered new exit (range 13) 828 | -10/Materials | Discovered new exit (range 16) 1183 | -10/Materials | Repaired Lgt. Treads 1211 | -10/Materials | Repaired Lgt. Treads 1225 | -10/Materials | Discovered new exit (range 7) 1321 | -10/Materials | Discovered new exit (range 15) 1490 | -10/Materials | Entered Mines 1491 | -10/Mines | Assembled infested the area 1496 | -10/Mines | Assisted by a Guerilla fighting off Assembled 1833 | -10/Mines | Found a hidden stash of uninstalled traps 1891 | -10/Mines | YI-UF0 nonchalantly dropped a Grenade Launcher on the ground 1961 | -10/Mines | Deemed a non-threat by the Exiles lab entrance 1961 | -10/Mines | Discovered new exit (range 5) 1968 | -10/Mines | Entered Exiles 2007 | -10/Exiles | Met 8R-AWN 2034 | -10/Exiles | Met EX-HEX 2077 | -10/Exiles | Met EX-BIN 2096 | -10/Exiles | Aligned with FarCom system 2098 | -10/Exiles | Given EX-Vault access code 2141 | -10/Exiles | Opened EX-Vault 2151 | -10/Exiles | Found Modified TNC 2185 | -10/Exiles | Warned to stay clear of 0b10 Research branches 2240 | -10/Exiles | Met EX-DEC 2293 | -10/Exiles | Discovered new exit (range 15) 2315 | -10/Exiles | Left Exiles lab with Modified TNC 2315 | -10/Exiles | Entered Mines 2458 | -9/Mines | A weapon hastily lodged in a ceiling crevice suddenly fell to the ground 2655 | -9/Mines | Learned location of Zion (-6) 2878 | -9/Mines | Discovered new exit (range 10) 2894 | -9/Mines | Entered Materials 2894 | -8/Materials | Evolved 4 slots: Propulsion x1, Utility x2, Weapon x1 3234 | -8/Materials | Build established: Skirmisher 3946 | -8/Materials | Discovered new exit (range 16) 4156 | -8/Materials | Entered Factory 4156 | -7/Factory | Evolved 2 slots: Propulsion x1, Utility x1 4384 | -7/Factory | Discovered new exit (range 16) 5976 | -7/Factory | Self-destructed Last Messages --------------- 05911_ K-01 Serf cleans the Assembly Bed. 05912_ Acquired 24 matter. 05913_ K-01 Serf collects debris. 05919_ K-01 Serf cleans the Assembly Bed. 05920_ K-01 Serf collects debris. 05923_ K-01 Serf cleans the Assembly Bed. 05932_ Critical hit (Burn: +37). 05935_ Slug penetrates G-47 Trooper. 05936_ TJZXR8POGYFM9ALHPFSOLGAYKV9IYC9P:8W1I2 05938_ Slug penetrates Assembly Bed. 05941_ Assembly Bed collapses. 05941_ Assembly Bed disabled. 05941_ K-01 Serf collects debris. 05944_ Destroyed Lgt. Nuclear Core. 05945_ Autogun destroyed. 05946_ Critical hit (Burn: +37). 05949_ K-01 Serf collects debris. 05951_ Lgt. Treads destroyed. 05952_ K-01 Serf collects debris. 05968_ Gauss Rifle destroyed. Map ----- +----------------------------------------------------+ | ?????????????????????????????????????????????????? | | ?????????????????????????????????????????????????? | | ?????????????????????????????????????????????????? | | ?????????????????????????????????????????????????? | | ?????????????????????????????????????????????????? | | ?????????????????????????????????????????????????? | | ????????????????? ???????????????????????????????? | | ????????????????# ???????????????????????????????? | | ????????????????# ???????????????????????#???????? | | ???????????????## #????????????????????? #???????? | | ???????????????? ????????????????????? #???????? | | ???????????? ??? ????????????????????? #???????? | | ????????????""""" ????????????????????# ##??????? | | ????????????"" F" #################### ##=####? | | ????????????"" "" ]!%*[ | | ????????? ###### ##### ! #??????? | | ??????? #????# #???#= ####??????? | | ???????? """"""" ######+##+#???# #?????????? | | ??????????""""""" # !!#???# ######????? | | ??????????""""""" # =##### ##] # | | ?? """"""" #=[ != + + """ | | ?? =# """""g=########+## # """ | | ?? [k/*"""""" ]#??# ## ##?""" | | ??????##### [#="""""" #??# ## #????? | | ??????????# # """""" #??# ## #?????? | | ??????????# ##### ### g @ g #??# ##=#?????? | | ???????####+#####+#############??# ## #?????? | | ???????# ############## ##*#?????? | | ???????# # ## ## #?????? | | ???????# # """ """ ## ## #?????? | | ???????# + """ """ ########## #?????? | | ???????# # """ """ + #?????? | | ???????# # # #?????? | | ???????# ############# #?????? | | ???????# + #?????? | | ? ???# # ###################?????? | | ??# # #???????????????????????? | | ?# #? +???????????????????????? | | # #? #???????????????????????? | | ######+####### #???????????????????????? | | ! # ??????????????????????? | | # ??????????????????????? | | # ??????????????????????? | | """"""" # ???????????????????""?? | | """"""" + ??????????????????"""?? | | """"""" # ??????????????????"F??? | | """"""" # ??????????????????"""?? | | ####+###### # ??????????""?? | | # ###########?????????????? | | """ """ # ##?????????????? | +----------------------------------------------------+ Best States ------------- Heat Dissipation 56 Energy Generation 14 Energy Capacity 250 Matter Stores 300 Matter Capacity 300 Sight Range 20 Terrain Scan Density 10 Armor Coverage 150 Evasion (%) 40 Recoil Reduction 4 Item Schematics ----------------- Lgt. Treads | -10/Materials | Hacked Adv. Treads | -8/Materials | Scanalyzed Robot Schematics ------------------ None Fabricated ------------ Nothing Alien Tech Used ----------------- None Achievements -------------- None Challenges ------------ None Game ------ Seed ReflectiveRagnarokDatajack Manual? 0 Play Time 01:07:10 Cumulative 42.7 hours Start 2023.04.11 @ 07:23:54 End 2023.04.11 @ 08:34:12 Sessions 1 Manual Loads 0 Difficulty Rogue Special Mode None Game No. 46 Rogue 46 Adventurer 0 Explorer 0 Win Type - Total 0 Types 0/0/0/0/0/0/0/0/0 Lore% 25 Gallery% 30 Achievement% 23 Wizard Run 0 Options --------- ASCII 1 Keyboard 1 Movement Numpad Keybinds 0 Fullscreen 1 Font 18/SmallcapsGlow Map View 76x50 Tactical HUD 1 Map Filters NONE Filters NONE Steam 1 RUN: 277eb5bd-79d4-45a8-933e-8552a9ad0773